bitfinex/quotes_ETHUSD_20260216
["timestamp","ask_amount","ask_price","bid_price","bid_amount"]
[1771285112026,0.0011,1997.3,1997.0,1.041]
[1771285115015,0.0011,1997.3,1997.0,2.29281812]
[1771285115633,0.0011,1997.2,1997.0,2.29281812]
[1771285123056,0.0011,1997.4,1997.1,0.47622765]
[1771285124250,0.0011,1997.7,1997.4,0.4780392]
[1771285124549,0.0011,1997.8,1997.6,1.2515018]
[1771285125641,0.0011,1997.8,1997.6,1.729541]
[1771285126947,0.0011,1998.0,1997.6,1.2515018]
[1771285127131,0.0011,1998.0,1997.7,0.4780392]
[1771285127332,0.0011,1998.0,1997.8,1.051]
[1771285127730,0.0011,1998.0,1997.8,1.5290392]
[1771285127926,1.74226838,1998.5,1997.8,1.5290392]
[1771285128350,0.49132854,1998.4,1997.8,1.5290392]
[1771285129461,0.49132854,1998.4,1997.9,1.25131387]
[1771285131651,1.74234151,1998.4,1997.9,1.25131387]
[1771285131855,1.74234151,1998.4,1997.8,1.5290392]
[1771285131856,0.49895961,1998.3,1997.8,2.30232991]
[1771285135834,0.49895961,1998.2,1997.8,2.30232991]
[1771285136532,0.49895961,1998.4,1997.8,2.30232991]
[1771285139856,0.49895961,1998.4,1997.9,0.001]
[1771285140062,0.0011,1998.3,1997.9,0.001]
[1771285140644,0.50005961,1998.3,1997.9,0.001]
[1771285147351,0.0011,1998.3,1997.9,0.001]
[1771285147669,0.0011,1998.3,1997.9,0.49858309]
[1771285148075,0.0011,1998.3,1997.9,0.001]
[1771285148390,0.50005961,1998.3,1997.9,0.001]
[1771285151306,1.25217306,1998.3,1997.9,0.001]
[1771285151586,0.49895961,1998.2,1997.9,0.001]
[1771285152577,0.49895961,1998.2,1998.0,0.001]
[1771285152778,0.50005961,1998.2,1998.0,0.001]
[1771285153296,1.75120523,1998.2,1998.0,0.001]
[1771285155597,0.45302493,1998.1,1997.8,0.001]
[1771285158316,0.0011,1998.2,1997.8,0.001]
[1771285162922,0.45302493,1998.1,1997.8,0.001]
[1771285163123,0.45302493,1997.9,1997.6,0.001]
[1771285164584,0.45302493,1997.8,1997.6,0.001]
[1771285166620,0.45302493,1997.7,1997.6,0.001]
[1771285166986,1.25135664,1997.9,1997.6,0.001]
[1771285166987,1.70438157,1997.9,1997.6,0.001]
[1771285172750,0.45412493,1998.1,1997.6,0.001]
[1771285173031,0.45412493,1998.1,1997.6,0.49998365]
[1771285173032,0.0011,1998.1,1997.6,0.49998365]
[1771285175199,0.0011,1998.1,1997.7,1.7504228]
[1771285175412,0.0011,1998.1,1997.8,0.49898365]
[1771285176443,0.0011,1998.3,1998.0,0.49898365]
[1771285177294,0.0011,1998.5,1998.1,0.49898365]
[1771285177502,0.0011,1998.5,1998.0,1.25125125]
[1771285178211,0.0011,1998.5,1998.0,1.7502349]
[1771285179523,0.0011,1998.1,1998.0,1.7502349]
[1771285179840,0.0011,1998.2,1998.0,1.7502349]
[1771285184631,0.0011,1998.2,1998.1,1.053]
[1771285185020,0.0011,1998.2,1998.1,1.54672406]
[1771285186409,0.0011,1998.4,1998.2,1.74485007]
[1771285189241,0.0011,1998.6,1998.2,1.74485007]
[1771285189446,5.00238038,1999.1,1998.2,1.74485007]
[1771285189447,0.4659739,1999.1,1998.4,0.46790606]
[1771285189649,0.4659739,1999.1,1998.3,6.70927803]
[1771285189650,0.4659739,1999.1,1998.5,1.52490606]
[1771285190021,0.4659739,1999.1,1998.5,1.057]
[1771285190432,0.4659739,1998.9,1998.5,1.057]
[1771285190834,1.71669129,1998.9,1998.5,1.057]
[1771285191039,0.4659739,1998.8,1998.5,1.057]
[1771285193041,1.71674215,1998.8,1998.5,1.057]
[1771285193242,0.4659739,1998.7,1998.5,1.057]
[1771285193926,0.4659739,1998.7,1998.2,2.30707925]
[1771285194336,1.71671213,1998.9,1998.3,0.46790606]
[1771285194736,0.4659739,1998.9,1998.3,0.46790606]
[1771285194939,0.4670739,1999.0,1998.4,1.71890686]
[1771285199663,1.71770431,1999.0,1998.4,1.71890686]
[1771285200058,0.4659739,1998.9,1998.4,1.2510008]
[1771285200248,0.4659739,1998.9,1998.2,2.30712195]
[1771285200868,0.4659739,1998.9,1998.1,1.25115398]
[1771285201181,0.4659739,1998.9,1998.2,1.056]
[1771285201980,0.4659739,1998.7,1998.2,1.056]
[1771285202761,0.4659739,1998.5,1997.9,1.055]
[1771285203448,0.4659739,1998.5,1998.3,0.001]
[1771285203950,1.7169747,1998.4,1998.3,0.001]
[1771285205169,0.4659739,1998.3,1998.0,0.001]
[1771285206076,1.25112601,1998.2,1998.0,0.001]
[1771285206275,0.4659739,1998.1,1997.7,0.001]
[1771285208060,1.71718544,1998.1,1997.7,0.001]
[1771285208663,0.4659739,1998.1,1997.7,0.001]
[1771285209362,1.71716874,1998.1,1997.7,0.001]
[1771285209882,0.4659739,1998.0,1997.7,0.001]
[1771285211081,1.71722545,1998.0,1997.7,0.001]
[1771285211583,0.4659739,1997.9,1997.7,0.001]
[1771285212254,0.4659739,1997.9,1997.5,1.055]
[1771285213078,1.71735041,1997.8,1997.5,0.001]
[1771285213260,0.4659739,1997.7,1997.5,0.001]
[1771285213461,0.4659739,1997.7,1997.4,0.001]
[1771285214584,0.41593888,1997.7,1997.4,0.001]
[1771285215277,1.74764893,1997.6,1997.4,0.001]
[1771285215752,0.49614713,1997.5,1997.4,0.001]
[1771285215959,1.2515018,1997.6,1997.4,0.001]
[1771285216301,1.25140305,1997.8,1997.4,0.001]
[1771285216463,1.25128519,1998.0,1997.4,0.46228816]
[1771285216783,1.25128519,1998.0,1997.6,0.001]
[1771285216991,2.67737606,1998.1,1997.6,0.001]
[1771285218276,0.49614713,1998.0,1997.6,0.001]
[1771285219691,0.93,1998.1,1997.6,0.46228816]
[1771285219861,1.74835426,1998.3,1997.6,0.46228816]
[1771285220890,0.49724713,1998.3,1997.6,0.46228816]
[1771285221266,1.7483154,1998.3,1997.6,0.46228816]
[1771285221462,1.7483154,1998.3,1997.7,1.71272731]
[1771285222301,1.7483154,1998.3,1997.7,0.46128816]
[1771285223691,0.49614713,1998.2,1997.6,2.76476425]
[1771285224390,0.0011,1998.3,1997.7,0.46128816]
[1771285225564,0.0011,1998.3,1997.8,1.25137651]
[1771285226972,0.0011,1998.3,1997.8,1.71266467]
[1771285228590,0.0011,1998.3,1997.8,0.46128816]
[1771285228806,0.49724713,1998.3,1997.6,2.76476702]
[1771285228966,0.49724713,1998.3,1997.7,0.46128816]
[1771285229301,0.49724713,1998.3,1997.7,0.46228816]
[1771285229794,0.0011,1998.2,1997.7,0.46228816]
[1771285230090,0.0011,1998.2,1997.8,1.25137651]
[1771285230266,0.0011,1998.2,1997.7,1.7136837]
[1771285235078,0.0011,1998.2,1997.7,0.46228816]
[1771285237378,0.0011,1998.2,1997.8,1.25137651]
[1771285237891,0.0011,1998.2,1997.8,1.71266467]
[1771285240197,0.49724713,1998.2,1997.7,0.001]
[1771285242502,0.49614713,1998.1,1997.7,0.001]
[1771285242798,0.0011,1998.1,1997.7,0.001]
[1771285245192,0.0011,1998.1,1997.7,0.49033302]
[1771285246006,0.0011,1998.1,1997.7,0.001]
[1771285246578,0.0011,1998.1,1997.7,0.49033302]
[1771285248401,0.0011,1998.1,1997.7,0.001]
[1771285248601,0.4683,1998.1,1997.7,0.001]
[1771285252610,1.71950132,1998.1,1997.7,0.001]
[1771285254409,0.4683,1998.1,1997.7,0.001]
[1771285254708,0.0011,1998.1,1997.7,0.47951085]
[1771285254913,0.0011,1998.1,1997.8,0.001]
[1771285255213,0.0011,1998.0,1997.8,0.001]
[1771285258198,0.0011,1998.0,1997.8,0.47951085]
[1771285260721,0.0011,1998.0,1997.9,1.25131387]
[1771285260901,0.0011,1998.2,1997.9,1.72982472]
[1771285261101,0.0011,1998.4,1998.1,0.47851085]
[1771285261507,2.62537123,1998.9,1998.2,0.47851085]
[1771285261706,2.15268979,1998.9,1998.2,0.47851085]
[1771285261900,2.62534252,1998.9,1998.2,0.47851085]
[1771285262103,1.72334252,1998.9,1998.2,0.47851085]
[1771285262586,1.72334252,1998.9,1998.3,1.2510634]
[1771285263426,1.72334252,1998.9,1998.3,1.72957425]
[1771285265324,0.47265273,1998.9,1998.3,1.72957425]
[1771285265899,2.65125171,1999.1,1998.4,1.53351085]
[1771285266101,2.65125171,1999.1,1998.5,0.47851085]
[1771285267018,0.0011,1998.8,1998.5,0.47851085]
[1771285267323,0.0011,1998.8,1998.6,1.25087561]
[1771285268117,0.0011,1998.8,1998.5,1.72940174]
[1771285268424,0.0011,1998.8,1998.5,1.25089089]
[1771285269820,0.0011,1998.8,1998.4,1.055]
[1771285270216,0.0011,1998.8,1998.4,1.53351085]
[1771285270713,0.0011,1998.8,1998.4,1.055]
[1771285271025,0.0011,1998.8,1998.5,0.47851085]
[1771285272125,0.0011,1998.8,1998.5,1.72942202]
[1771285272344,0.0011,1999.1,1998.6,0.47851085]
[1771285274033,0.0011,1999.1,1998.7,1.70589459]
[1771285277635,0.0011,1999.1,1998.9,0.45508157]
[1771285279136,0.0011,1999.0,1998.9,1.70571313]
[1771285281438,0.0011,1999.3,1998.9,1.70571313]
[1771285281842,0.0011,1999.3,1998.9,1.25063156]
[1771285282848,0.47718313,1999.3,1998.8,1.056]
[1771285283345,1.2505002,1999.2,1998.8,1.056]
[1771285283587,0.47608313,1999.1,1998.8,1.056]
[1771285284353,1.25158196,1999.3,1998.8,1.056]
[1771285284865,1.72766509,1999.3,1998.8,1.056]
[1771285287366,1.72766509,1999.3,1998.4,1.70707304]
[1771285287367,7.1813989,1999.2,1998.4,1.70707304]
[1771285287671,0.47608313,1998.9,1998.4,0.001]
[1771285287871,0.47608313,1998.7,1998.4,0.001]
[1771285288048,1.2505002,1999.2,1998.4,0.001]
[1771285288253,0.47608313,1999.1,1998.4,0.001]
[1771285288766,0.47608313,1999.1,1998.4,0.45608157]
[1771285289951,0.47608313,1999.1,1998.5,1.2509382]
[1771285289952,1.72664891,1999.1,1998.5,1.2509382]
[1771285290366,0.47608313,1999.0,1998.4,0.001]
[1771285291357,0.47608313,1999.0,1998.4,1.25199907]
[1771285292077,1.72674882,1999.0,1998.5,0.001]
[1771285292578,1.72784882,1999.0,1998.5,0.001]
[1771285304962,1.72784882,1999.0,1998.6,0.001]
[1771285307091,0.0011,1999.0,1998.6,0.001]
[1771285309694,0.48545722,1999.0,1998.6,0.001]
[1771285314478,1.7360945,1999.0,1998.6,0.001]
[1771285315279,1.73608451,1999.0,1998.6,0.001]
[1771285315592,1.25172729,1999.0,1998.6,0.001]
[1771285316279,0.0011,1999.0,1998.6,0.001]
[1771285316995,1.25172878,1999.0,1998.6,0.001]
[1771285317399,1.25172878,1999.0,1998.7,0.001]
[1771285318384,1.25172878,1999.0,1998.5,0.001]
[1771285318385,0.48435722,1998.9,1998.5,0.001]
[1771285318603,0.48435722,1998.5,1998.3,0.001]
[1771285318786,0.48435722,1998.5,1998.1,0.001]
[1771285318970,1.2510008,1998.4,1998.1,0.001]
[1771285319294,1.73535802,1998.4,1998.1,0.001]
[1771285320692,0.48435722,1998.3,1998.1,0.001]
[1771285321996,1.25177371,1999.0,1998.2,0.49949566]
[1771285322506,1.73613093,1999.0,1998.2,0.49949566]
[1771285324206,0.48435722,1998.9,1998.3,1.2510634]
[1771285324984,0.48435722,1998.9,1998.3,1.75055906]
[1771285325188,0.0011,1999.0,1998.4,0.49949566]
[1771285326399,0.48545722,1999.0,1998.4,0.49949566]
[1771285326804,0.48545722,1999.0,1998.4,1.75049196]
[1771285326990,0.0011,1999.0,1998.5,0.49949566]
[1771285327195,0.48545722,1999.0,1998.4,1.2509963]
[1771285329079,1.73612574,1999.0,1998.4,1.2509963]
[1771285330510,0.0011,1998.9,1998.4,1.2509963]
[1771285331096,0.0011,1998.9,1998.3,1.75151059]
[1771285331410,0.48545722,1998.9,1998.3,1.75151059]
[1771285331610,0.48545722,1998.9,1998.3,1.75155774]
[1771285334305,1.25075045,1998.8,1998.3,0.50049566]
[1771285334507,1.25075045,1998.8,1998.3,1.7515554]
[1771285336307,0.48545722,1998.9,1998.3,1.7515554]
[1771285337619,1.73615049,1998.9,1998.3,1.7515554]
[1771285342900,0.0011,1998.8,1998.3,1.7515554]
[1771285349697,0.45257091,1998.8,1998.3,0.001]
[1771285351519,1.70234652,1998.6,1998.3,0.001]
[1771285351724,0.45147091,1998.5,1998.3,0.001]
[1771285351911,7.15833673,1998.4,1998.1,0.001]
[1771285352112,0.45147091,1998.3,1998.1,0.001]
[1771285352313,0.45147091,1998.3,1997.8,0.001]
[1771285353924,2.18587561,1998.6,1998.0,0.45256351]
[1771285353925,0.45147091,1998.6,1998.0,0.45256351]
[1771285354525,0.45147091,1998.6,1998.3,0.001]
[1771285355828,1.70235214,1998.6,1998.3,0.001]
[1771285357810,0.45147091,1998.6,1998.3,0.001]
[1771285358116,1.25186419,1998.8,1998.3,1.048]
[1771285358326,0.45147091,1998.7,1998.3,1.048]
[1771285360231,1.25087561,1998.6,1998.3,1.048]
[1771285361013,1.70234652,1998.6,1998.3,0.001]
[1771285361221,0.45147091,1998.5,1998.3,0.001]
[1771285362836,1.25087561,1998.6,1998.3,0.001]
[1771285364334,1.71659676,1998.6,1998.3,0.001]
[1771285365447,0.46572115,1998.5,1998.3,0.001]
[1771285366544,0.46682115,1998.5,1998.3,0.001]
[1771285366931,0.0011,1998.5,1998.3,0.001]
[1771285372236,0.0011,1998.5,1998.2,0.001]
[1771285372237,0.46610172,1998.5,1998.2,0.001]
[1771285375235,1.71707474,1998.5,1998.2,0.001]
[1771285376738,1.25207302,1998.5,1998.2,0.001]
[1771285377544,0.0011,1998.5,1998.2,0.001]
[1771285379028,0.0011,1998.5,1998.3,0.001]
[1771285379326,0.0011,1998.4,1998.3,0.001]
[1771285380958,0.0011,1998.4,1998.1,0.001]
[1771285381434,0.46610172,1998.4,1998.1,0.001]
[1771285382419,1.2510634,1998.3,1998.1,0.001]
[1771285383055,5.47011437,1998.4,1998.1,0.001]
[1771285383056,0.0011,1998.4,1998.1,0.001]
[1771285391756,0.0011,1998.4,1998.2,0.001]
[1771285391956,0.0011,1998.3,1998.2,0.001]
[1771285400038,0.0011,1998.3,1998.1,0.001]
[1771285400240,0.47840807,1998.3,1998.0,0.001]
[1771285400471,8.43638154,1998.3,1997.8,0.001]
[1771285401269,0.9411,1998.7,1997.8,0.001]
[1771285401270,0.47730807,2000.1,1998.3,0.4607595]
[1771285401439,0.47730807,1999.1,1998.3,1.035]
[1771285401640,0.47730807,1999.1,1998.3,1.4957595]
[1771285401848,0.0011,1999.0,1998.4,0.4607595]
[1771285402367,0.0011,1999.0,1998.4,1.71171358]
[1771285404861,0.0011,1998.6,1998.4,1.71171358]
[1771285405440,0.0011,1998.6,1998.3,1.035]
[1771285405755,0.0011,1998.6,1998.2,1.25211837]
[1771285405756,0.0022,1998.6,1998.2,1.25211837]
[1771285406441,0.0022,1998.6,1998.2,0.001]
[1771285410367,0.47730807,1998.5,1998.2,0.001]
[1771285410562,0.0022,1998.6,1998.2,0.001]
[1771285411661,0.0011,1998.5,1998.2,0.001]
[1771285412044,0.0011,1998.4,1998.2,0.001]
[1771285414364,0.0011,1998.4,1998.2,0.4617595]
[1771285414570,0.0011,1998.6,1998.2,0.4617595]
[1771285414743,0.0011,1998.5,1998.2,0.4617595]
[1771285415761,0.0011,1998.5,1998.3,1.2510634]
[1771285416654,0.0011,1998.6,1998.4,0.4607595]
[1771285418478,0.0011,1998.6,1998.4,1.71170199]
[1771285418645,0.0011,1998.6,1998.4,1.25094249]
[1771285425056,0.9571,1998.9,1998.5,0.47088793]
[1771285425379,0.9571,1998.9,1998.4,1.25094249]
[1771285425380,0.0011,1998.8,1998.4,1.25094249]
[1771285427568,1.43710272,1998.9,1998.4,1.25094249]
[1771285427772,0.0011,1998.8,1998.4,1.25094249]
[1771285428288,0.0011,1998.8,1998.4,1.72183042]
[1771285428957,0.9571,1998.9,1998.4,1.72183042]
[1771285429180,0.0011,1998.8,1998.4,1.72183042]
[1771285429577,0.0011,1998.7,1998.5,0.46860493]
[1771285429789,0.0011,1998.8,1998.5,0.46860493]
[1771285430977,0.0011,1998.8,1998.4,0.46860493]
[1771285431187,0.0011,1998.7,1998.4,0.46860493]
[1771285431387,0.0011,1998.8,1998.4,0.46860493]
[1771285431955,0.0011,1998.8,1998.3,0.001]
[1771285431956,0.0011,1998.7,1998.3,0.001]
[1771285432174,0.49874563,1998.8,1998.3,0.001]
[1771285432585,0.49874563,1998.7,1998.3,0.001]
[1771285432760,0.49764563,1998.7,1998.3,0.001]
[1771285432966,0.0011,1998.6,1998.3,0.001]
[1771285433491,0.0011,1998.5,1998.3,0.001]
[1771285433786,0.0011,1998.6,1998.3,0.001]
[1771285434157,0.49764563,1998.7,1998.3,0.001]
[1771285434158,0.0011,1998.5,1998.3,0.001]
[1771285434360,0.0011,1998.6,1998.3,0.001]
[1771285434761,0.0011,1998.5,1998.3,0.001]
[1771285435587,0.49764563,1998.7,1998.3,0.001]
[1771285435797,0.0011,1998.6,1998.3,0.001]
[1771285440587,0.0011,1998.6,1998.4,0.001]
[1771285441761,0.0011,1998.5,1998.4,0.001]
[1771285441990,0.0011,1998.6,1998.4,0.001]
[1771285446498,0.0011,1998.7,1998.4,0.001]
[1771285446670,0.0011,1998.6,1998.4,0.001]
[1771285448729,0.49874563,1998.6,1998.4,0.001]
[1771285452905,0.49874563,1998.6,1998.5,0.001]
[1771285453279,0.49764563,1998.6,1998.4,0.0009]
[1771285453485,0.49874563,1998.6,1998.4,0.0009]
[1771285457910,0.0011,1998.6,1998.4,0.0009]
[1771285459982,0.47945351,1998.6,1998.4,0.0009]
[1771285460586,0.0011,1998.6,1998.4,0.0009]
[1771285463382,0.47945351,1998.6,1998.4,0.0009]
[1771285463697,0.0011,1998.6,1998.4,0.0009]
[1771285466316,0.0011,1998.6,1998.5,0.001]
[1771285479334,0.47945351,1998.6,1998.5,0.001]
[1771285479640,0.47945351,1998.6,1998.2,0.001]
[1771285479641,0.47835351,1998.5,1998.2,0.001]
[1771285479815,0.47835351,1998.4,1998.2,0.001]
[1771285480602,7.18189893,1998.4,1998.1,0.001]
[1771285480910,0.47835351,1998.3,1997.9,0.001]
[1771285481714,1.72947952,1998.2,1997.9,0.001]
[1771285481916,0.952,1998.1,1997.9,0.001]
[1771285483345,0.952,1998.1,1997.8,0.001]
[1771285483346,0.47835351,1998.0,1997.7,0.001]
[1771285483725,0.47835351,1998.0,1997.5,0.001]
[1771285483726,1.25137651,1997.8,1997.5,0.001]
[1771285483909,1.43235351,1997.7,1997.5,0.001]
[1771285484816,0.45222913,1997.6,1997.5,0.001]
[1771285485421,0.45222913,1997.6,1997.3,0.001]
[1771285486429,1.70375316,1997.6,1997.3,0.001]
[1771285486921,1.25152403,1997.6,1997.3,0.001]
[1771285487129,0.45222913,1997.5,1997.3,0.001]
[1771285487336,0.956,1997.4,1997.3,0.001]
[1771285487525,1.40822913,1997.4,1997.3,0.001]
[1771285489262,2.65985624,1997.4,1997.3,0.001]
[1771285489542,0.49984659,1997.3,1997.1,0.001]
[1771285489713,0.49984659,1997.3,1997.0,0.001]
[1771285489714,0.49984659,1997.3,1996.9,0.001]
[1771285491832,1.25175245,1997.2,1996.9,0.001]
[1771285492029,0.96,1997.1,1996.9,0.001]
[1771285494922,0.49984659,1997.0,1996.3,0.47088793]
[1771285496220,1.75175742,1997.0,1996.4,1.25225405]
[1771285497247,0.49984659,1996.9,1996.3,0.47088793]
[1771285497452,0.963,1996.8,1996.3,0.47088793]
[1771285498832,2.21502554,1996.8,1996.3,0.47088793]
[1771285500035,0.963,1996.8,1996.4,0.47088793]
[1771285500239,0.963,1996.8,1996.6,0.47088793]
[1771285500640,0.965,1997.0,1996.6,0.47088793]
[1771285500850,6.70354542,1997.7,1996.9,1.72282843]
[1771285500851,1.2515018,1997.6,1996.9,1.72282843]
[1771285501030,0.49984659,1997.6,1997.0,0.47088793]
[1771285501233,0.965,1997.5,1997.0,0.47088793]
[1771285501556,5.0043445,1998.3,1997.2,0.47088793]
[1771285501557,0.49984659,1998.0,1997.2,0.47088793]
[1771285501870,0.965,1998.0,1997.4,0.47088793]
[1771285502231,1.408,1998.2,1997.6,0.47088793]
[1771285502430,1.408,1998.2,1997.7,6.70354542]
[1771285502732,0.902,1998.2,1997.8,0.47088793]
[1771285502948,0.8091,1998.5,1997.9,1.7222018]
[1771285503175,0.8091,1998.5,1998.0,0.47088793]
[1771285503344,0.0011,1998.5,1998.0,0.47088793]
[1771285505541,0.0011,1998.5,1998.1,1.25118862]
[1771285507743,0.0011,1998.5,1998.0,1.25120222]
[1771285510674,0.0011,1998.5,1998.1,0.47088793]
[1771285512977,0.0011,1998.5,1998.0,1.25120222]
[1771285513181,0.49984659,1998.4,1997.5,0.47088793]
[1771285514845,0.49984659,1998.4,1998.1,0.001]
[1771285515270,1.75087711,1998.4,1998.1,0.001]
[1771285515645,1.75197711,1998.4,1998.1,0.001]
[1771285516146,0.49466019,1998.3,1998.1,0.001]
[1771285519445,0.49466019,1998.2,1998.1,0.001]
[1771285521450,1.7457862,1998.2,1998.1,0.001]
[1771285521651,2.21612547,1998.4,1998.1,0.001]
[1771285521851,1.45976019,1998.4,1998.1,0.001]
[1771285522154,2.71076402,1998.4,1998.1,0.001]
[1771285526883,0.49466019,1998.3,1998.1,0.001]
[1771285527756,0.49576019,1998.3,1998.1,0.001]
[1771285527957,1.74688162,1998.3,1998.1,0.001]
[1771285528760,0.49466019,1998.2,1998.1,0.001]
[1771285532191,1.25220713,1998.3,1998.1,0.001]
[1771285532790,1.74686732,1998.3,1998.1,0.001]
[1771285537365,2.89901614,1998.2,1998.1,0.001]
[1771285537878,0.49576019,1998.3,1998.1,0.001]
[1771285538394,2.89927704,1998.2,1998.1,0.001]
[1771285538807,0.0011,1998.3,1998.1,0.4714166]
[1771285539384,0.0011,1998.2,1998.1,0.001]
[1771285548205,0.0011,1998.3,1998.1,0.47188793]
[1771285548583,0.0011,1998.5,1998.3,0.47088793]
[1771285551288,0.0011,1998.5,1998.4,1.2510008]
[1771285553084,0.0011,1998.8,1998.5,0.46978793]
[1771285553286,0.0022,1998.8,1998.6,1.25087561]
[1771285553508,0.0022,1998.8,1998.6,1.72066354]
[1771285554488,0.0022,1998.8,1998.6,1.25087561]
[1771285554998,0.0011,1998.8,1998.7,0.46978793]
[1771285555413,0.0011,1998.8,1998.7,1.72060095]
[1771285559627,0.0011,1998.9,1998.7,1.72060095]
[1771285559799,0.0011,1999.0,1998.8,0.46978793]
[1771285559992,0.0022,1999.0,1998.8,0.46978793]
[1771285560818,0.0022,1999.0,1998.9,1.25068787]
[1771285561728,0.963,1999.3,1998.9,1.25068787]
[1771285563609,1.4580586,1999.3,1998.9,1.25068787]
[1771285564461,0.0011,1999.0,1998.9,1.7204758]
[1771285564601,0.0011,1999.2,1999.0,0.46978793]
[1771285565093,0.0011,1999.2,1999.1,1.25056275]
[1771285565299,2.20913064,1999.8,1999.1,1.72035068]
[1771285565300,1.4540586,1999.8,1999.1,1.72035068]
[1771285565616,1.4540586,1999.8,1999.2,0.46978793]
[1771285565858,0.4950586,2000.4,1999.5,7.17428529]
[1771285565995,3.2287594,2000.3,1999.4,0.46978793]
[1771285566339,0.4950586,2000.2,1999.4,0.46978793]
[1771285566698,0.4950586,2000.2,1999.5,6.70449736]
[1771285567022,0.4950586,2000.2,1999.5,7.17428529]
[1771285567224,0.4950586,2000.2,1999.6,1.25025005]
[1771285567431,0.4950586,2000.6,1999.8,0.46978793]
[1771285568240,0.4950586,2000.5,1999.6,1.25025005]
[1771285568594,0.4950586,2000.5,1999.6,1.72003798]
[1771285569497,1.24970127,2000.5,1999.6,1.72003798]
[1771285569701,0.4950586,2000.4,1999.6,1.72003798]
[1771285571003,0.4950586,2000.4,1999.8,0.46978793]
[1771285571309,6.70449736,2001.0,2000.1,7.17428529]
[1771285571310,0.4950586,2000.9,2000.1,7.17428529]
[1771285571624,0.4950586,2000.8,2000.2,1.24987501]
[1771285571936,0.4950586,2000.8,2000.1,1.24988882]
[1771285572101,0.4950586,2000.8,1999.7,1.039]
[1771285572102,0.4950586,2000.3,1999.4,1.72013772]
[1771285572303,0.4950586,2000.3,1999.4,1.25034979]
[1771285572511,6.70449736,2000.4,1999.3,6.5115114]
[1771285572512,0.4950586,2000.1,1999.3,1.25038953]
[1771285572723,0.4950586,1999.9,1999.1,1.7203093]
[1771285573042,0.4950586,1999.9,1999.1,1.25052137]
[1771285573820,0.4950586,1999.7,1999.0,1.25062531]
[1771285574036,0.4950586,1999.7,1998.9,2.29066424]
[1771285574616,0.4950586,1999.7,1999.0,0.46353332]
[1771285575124,0.4950586,1999.7,1998.9,1.25066424]
[1771285575844,0.46288571,1999.6,1999.2,0.001]
[1771285577820,0.46288571,1999.4,1999.0,0.001]
[1771285578858,0.46288571,1999.6,1999.0,0.001]
[1771285580349,0.46398571,1999.8,1999.0,0.46453332]
[1771285580730,1.7141149,1999.8,1999.0,0.46453332]
[1771285580926,0.46398571,1999.8,1999.0,0.46453332]
[1771285582431,0.46398571,1999.8,1999.1,1.25056275]
[1771285582744,0.46398571,1999.8,1999.1,1.71409607]
[1771285582920,0.0011,1999.8,1999.2,0.46353332]
[1771285583126,0.46288571,1999.7,1999.1,1.25056275]
[1771285583434,0.46288571,1999.7,1999.0,1.25157699]
[1771285583634,1.25122716,1999.8,1999.0,1.25157699]
[1771285583635,1.71411287,1999.8,1999.0,1.25157699]
[1771285583840,1.71411981,1999.8,1999.1,0.46353332]
[1771285584137,0.0011,1999.8,1999.1,0.46353332]
[1771285584444,0.46398571,1999.8,1999.2,1.71403352]
[1771285584648,0.0011,1999.8,1999.2,1.71403352]
[1771285585348,0.46398571,1999.8,1999.2,1.2505002]
[1771285586250,0.0011,1999.8,1999.2,1.71403352]
[1771285586627,0.0011,1999.8,1999.3,0.46353332]
[1771285588548,0.46398571,1999.8,1999.4,1.25037511]
[1771285589226,0.0011,1999.8,1999.4,1.25037511]
[1771285589849,0.0011,1999.7,1999.4,1.25037511]
[1771285593958,0.0011,1999.7,1999.4,1.71390843]
[1771285594440,0.0011,1999.8,1999.5,0.46353332]
[1771285596133,0.45878571,2000.3,1999.6,1.71378337]
[1771285596533,1.855,2000.4,1999.7,0.46353332]
[1771285596932,2.31788571,2000.4,1999.7,0.46353332]
[1771285598765,0.46288571,2000.3,1999.8,1.25012501]
[1771285599731,0.46288571,2000.3,1999.4,1.038]
[1771285599931,0.46288571,2000.3,1999.4,1.50153332]
[1771285600236,0.46288571,2000.3,1999.4,1.038]
[1771285600759,0.46288571,2000.1,1999.3,1.25043765]
[1771285602136,0.46288571,2000.1,1999.6,0.001]
[1771285602337,0.46398571,2000.1,1999.6,0.001]
[1771285605048,0.0011,2000.1,1999.6,0.001]
[1771285605561,0.47920893,2000.1,1999.6,0.001]
[1771285613967,0.47920893,2000.1,1999.6,1.25125005]
[1771285615468,0.47920893,2000.1,1999.7,0.001]
[1771285618570,0.45342756,2000.0,1999.7,0.001]
[1771285618782,0.45342756,2000.0,1999.6,0.001]
[1771285618947,0.45342756,2000.0,1999.5,0.001]
[1771285619145,0.45342756,1999.8,1999.5,0.001]
[1771285619351,0.45342756,1999.8,1999.5,1.25130725]
[1771285619955,0.45342756,1999.8,1999.5,0.001]
[1771285620950,1.25010478,1999.9,1999.5,0.001]
[1771285620951,0.45342756,1999.7,1999.5,0.001]
[1771285621764,0.45342756,1999.7,1999.3,0.001]
[1771285621957,0.45342756,1999.4,1999.1,1.25155583]
[1771285622355,0.45342756,1999.4,1999.1,0.001]
[1771285623057,0.45342756,1999.4,1999.1,1.25155367]
[1771285626050,0.45342756,1999.6,1999.1,0.001]
[1771285627180,0.45342756,1999.6,1999.2,0.001]
[1771285628062,0.45342756,1999.4,1999.2,0.001]
[1771285628984,0.45342756,1999.6,1999.2,0.001]
[1771285630990,0.45342756,1999.5,1999.2,0.001]
[1771285637374,1.73034668,1999.7,1999.2,0.001]
[1771285637570,0.48011386,1999.6,1999.2,0.001]
[1771285638494,0.0011,1999.4,1999.2,0.001]
[1771285640286,0.0011,1999.5,1999.2,0.47588793]
[1771285640790,0.0011,1999.5,1999.3,1.25043765]
[1771285644599,0.0011,1999.7,1999.5,0.47488793]
[1771285644798,0.0011,2000.1,1999.6,0.47488793]
[1771285644996,0.0022,2000.0,1999.6,0.47488793]
[1771285645499,0.0011,2000.1,1999.6,0.47488793]